fUSD/lending_fUSD_20250221
["ID","MTS","AMOUNT","RATE_DAILY","PERIOD"]
[353938017,1740156653512,-500.0,0.00013424,2]
[353938018,1740156653523,-500.81613514,0.00013424,2]
[353938019,1740156653532,-500.0,0.00013424,2]
[353938020,1740156653541,-495.05,0.00013424,2]
[353938021,1740156653551,-131.07087806,0.00013698,2]
[353938022,1740156653560,-2407.62,0.00013698,2]
[353938023,1740156653570,-500.0,0.00013698,2]
[353938024,1740156653580,-500.0,0.00013698,2]
[353938025,1740156653589,-500.0,0.00013698,2]
[353938026,1740156653598,-500.0,0.00013698,2]
[353938027,1740156653607,-500.0,0.00013698,2]
[353938028,1740156653616,-500.0,0.00013698,2]
[353938029,1740156653625,-20.27483592,0.00013698,2]
[353938030,1740156653643,-500.0,0.00013424,2]
[353938031,1740156653653,-340.11507506,0.00013698,2]
[353938032,1740156653663,-299.06211364,0.00013698,2]
[353938033,1740156653674,-1017.68788636,0.00013698,2]
[353938034,1740156653683,-500.0,0.00013698,2]
[353938035,1740156653692,-292.31211364,0.00013698,2]
[353938036,1740156653703,-207.68788636,0.00013698,2]
[353938037,1740156653712,-81.79510914,0.00013698,2]
[353938038,1740156653732,-1155.25600025,0.00013698,2]
[353938039,1740156653769,-695.5033811,0.00013698,2]
[353938040,1740156653781,-495.16522566,0.00013698,2]
[353938041,1740156653862,-400.21028385,0.00013698,2]
[353938042,1740156653871,-732.25,0.00013698,2]
[353938043,1740156653881,-500.0,0.00013698,2]
[353938044,1740156653890,-500.0,0.00013698,2]
[353938045,1740156653900,-970.76278194,0.00013698,2]
[353938046,1740156653913,-1633.30721806,0.00013698,2]
[353938047,1740156653923,-500.0,0.00013698,2]
[353938048,1740156653933,-1964.4,0.00013698,2]
[353938049,1740156653943,-1722.78,0.00013698,2]
[353938050,1740156653953,-500.0,0.00013698,2]
[353938051,1740156653963,-500.0,0.00013698,2]
[353938052,1740156653972,-1399.39,0.00013698,2]
[353938053,1740156653982,-500.0,0.00013698,2]
[353938054,1740156653992,-500.0,0.00013698,2]
[353938055,1740156654002,-666.52,0.00013698,2]
[353938056,1740156654011,-493.50317894,0.00013698,2]
[353938058,1740156778331,170.06,8.767e-05,2]
[353938063,1740157832015,-550.0,0.0001,2]
[353938064,1740157832025,-150.0,0.00010021,2]
[353938065,1740157832034,-686.11,0.00010043,2]
[353938066,1740157832044,-150.0,0.00010596,2]
[353938067,1740157832054,-362.94053773,0.00010907,2]
[353938068,1740157832064,-26010.39384247,0.00010907,2]
[353938070,1740157832075,-7730.65056951,0.00010907,2]
[353938072,1740157832085,-150.0,0.00011,2]
[353938074,1740157832094,-223.51,0.00011644,2]
[353938076,1740157832104,-1000.0,0.00011673,2]
[353938078,1740157832113,-277.61,0.00011713,2]
[353938079,1740157832123,-751.98517894,0.00011723,2]
[353938204,1740157837552,-3998.89482106,0.00011723,2]
[353938205,1740157837564,-162.36,0.00011736,2]
[353938206,1740157837575,-150.0,0.00011789,2]
[353938207,1740157837584,-600.0,0.00012,2]
[353938208,1740157837594,-798.86940606,0.00012022,2]
[353938209,1740157837603,-798.86940605,0.00012022,2]
[353938210,1740157837614,-200.0,0.00012048,2]
[353938211,1740157837625,-4023.63,0.00012055,2]
[353938212,1740157837635,-216.957375,0.00012081,3]
[353938213,1740157837644,-686.11,0.00012307,2]
[353938214,1740157837653,-152.25,0.00012336,2]
[353938215,1740157837664,-150.0,0.00012403,2]
[353938216,1740157837673,-150.0,0.00012403,2]
[353938217,1740157837683,-509.78,0.00012488,2]
[353938218,1740157837692,-508.94,0.00012488,2]
[353938219,1740157837966,-495.47,0.00012488,2]
[353938220,1740157837977,-220.0,0.00012596,2]
[353938221,1740157837987,-600.0,0.000129,4]
[353938222,1740157837996,-150.0,0.000129,2]
[353938223,1740157838005,-152.05,0.00012988,2]
[353938224,1740157838014,-150.72,0.00012988,2]
[353938225,1740157838024,-7761.72652,0.00013,2]
[353938227,1740157838033,-500.0,0.00013044,2]
[353938228,1740157838042,-500.0,0.00013044,2]
[353938229,1740157838051,-500.0,0.00013044,2]
[353938230,1740157838060,-150.0,0.00013069,2]
[353938231,1740157838069,-1000.0,0.00013081,2]
[353938232,1740157838078,-1000.0,0.00013132,2]
[353938233,1740157838087,-242.0,0.00013144,2]
[353938234,1740157838095,-53801.22613097,0.000132,2]
[353938235,1740157838104,-590.85658354,0.00013224,2]
[353938236,1740157838113,-150.0,0.0001328,2]
[353938237,1740157838123,-2792.82331432,0.00013324,2]
[353938238,1740157838132,-310.17310488,0.00013324,2]
[353938239,1740157838142,-1733.56590762,0.00013324,2]
[353938240,1740157838151,-500.0,0.00013324,2]
[353938241,1740157838165,-6008.8681,0.00013324,2]
[353938242,1740157838174,-2964.1315,0.00013324,2]
[353938243,1740157838183,-5000.0,0.00013324,2]
[353938244,1740157838193,-2500.0,0.00013324,2]
[353938245,1740157838202,-417.1690778,0.00013324,2]
[353938246,1740157838211,-150.0,0.00013336,2]
[353938247,1740157838221,-501.87522391,0.00013424,2]
[353938248,1740157838230,-498.01887829,0.00013424,2]
[353938249,1740157838239,-500.0,0.00013424,2]
[353938250,1740157838248,-500.0,0.00013424,2]
[353938251,1740157838257,-500.0,0.00013424,2]
[353938252,1740157838267,-500.0,0.00013424,2]
[353938253,1740157838276,-500.0,0.00013424,2]
[353938254,1740157838285,-642.66286372,0.00013424,2]
[353938255,1740157838294,-500.0,0.00013424,2]
[353938256,1740157838305,-500.0,0.00013424,2]
[353938257,1740157838314,-182.17365638,0.00013424,2]
[353938258,1740157838323,-500.0,0.00013424,2]
[353938259,1740157838332,-500.0,0.00013424,2]
[353938260,1740157838342,-500.0,0.00013424,2]
[353938261,1740157838351,-500.0,0.00013424,2]
[353938262,1740157838360,-500.0,0.00013424,2]
[353938263,1740157838369,-500.0,0.00013424,2]
[353938264,1740157838378,-500.0,0.00013424,2]
[353938265,1740157838387,-500.0,0.00013424,2]
[353938266,1740157838396,-500.0,0.00013424,2]
[353938267,1740157838407,-500.0,0.00013424,2]
[353938268,1740157838417,-500.0,0.00013424,2]
[353938269,1740157838426,-1498.417249,0.00013424,2]
[353938270,1740157838436,-116.36056234,0.00013424,2]
[353938271,1740157838450,-383.63943766,0.00013424,2]
[353938272,1740157838459,-267.61052134,0.00013424,2]
[353938273,1740157838494,-254.64947866,0.00013424,2]
[353938274,1740157838503,-500.0,0.00013424,2]
[353938275,1740157838513,-500.0,0.00013424,2]
[353938276,1740157838522,-168.769978,0.00013424,2]
[353938277,1740157838532,-500.0,0.00013424,2]
[353938278,1740157838544,-658.68,0.00013424,2]
[353938279,1740157838553,-277.9729303,0.00013424,2]
[353938280,1740157838565,-222.0270697,0.00013424,2]
[353938281,1740157838575,-155.403759,0.00013424,2]
[353938282,1740157838584,-157.45441788,0.00013424,2]
[353938283,1740157838595,-342.54558212,0.00013424,2]
[353938284,1740157838604,-394.93378334,0.00013424,2]
[353938285,1740157838615,-105.06621666,0.00013424,2]
[353938286,1740157838626,-500.0,0.00013424,2]
[353938287,1740157838635,-306.77378378,0.00013424,2]
[353938288,1740157838647,-193.22621622,0.00013424,2]
[353938289,1740157838657,-500.0,0.00013424,2]
[353938290,1740157838667,-1332.21974016,0.00013424,2]
[353938291,1740157838679,-110.81907584,0.00013424,2]
[353938292,1740157838688,-500.0,0.00013424,2]
[353938293,1740157838697,-500.0,0.00013424,2]
[353938294,1740157838706,-500.0,0.00013424,2]
[353938295,1740157838715,-500.0,0.00013424,2]
[353938296,1740157838724,-162.245377,0.00013424,2]
[353938297,1740157838734,-500.0,0.00013424,2]
[353938298,1740157838744,-500.0,0.00013424,2]
[353938299,1740157838753,-500.0,0.00013424,2]
[353938300,1740157838763,-500.0,0.00013424,2]
[353938301,1740157838772,-159.601526,0.00013424,2]
[353938302,1740157838781,-77.04625431,0.00013424,2]
[353938303,1740157838797,-422.95374569,0.00013424,2]
[353938304,1740157838806,-57.6572955,0.00013424,2]
[353938305,1740157838817,-442.3427045,0.00013424,2]
[353938306,1740157838826,-500.0,0.00013424,2]
[353938307,1740157838835,-570.79488659,0.00013424,2]
[353938308,1740157838844,-500.0,0.00013424,2]
[353938309,1740157838854,-500.0,0.00013424,2]
[353938310,1740157838863,-500.0,0.00013424,2]
[353938311,1740157838872,-500.0,0.00013424,2]
[353938312,1740157838882,-500.0,0.00013424,2]
[353938313,1740157838891,-500.0,0.00013424,2]
[353938314,1740157838900,-500.0,0.00013424,2]
[353938315,1740157838910,-500.0,0.00013424,2]
[353938316,1740157838919,-500.0,0.00013424,2]
[353938317,1740157838928,-500.0,0.00013424,2]
[353938318,1740157838937,-500.0,0.00013424,2]
[353938319,1740157838946,-500.0,0.00013424,2]
[353938320,1740157838955,-500.0,0.00013424,2]
[353938321,1740157838964,-500.0,0.00013424,2]
[353938322,1740157838973,-500.0,0.00013424,2]
[353938323,1740157838983,-48.35943968,0.00013424,2]
[353938324,1740157839000,-454.8179506,0.00013424,2]
[353938325,1740157839010,-506.45374156,0.00013424,2]
[353938326,1740157839019,-500.0,0.00013424,2]
[353938327,1740157839028,-500.0,0.00013424,2]
[353938328,1740157839037,-500.0,0.00013424,2]
[353938329,1740157839046,-500.0,0.00013424,2]
[353938330,1740157839055,-500.0,0.00013424,2]
[353938331,1740157839065,-500.0,0.00013424,2]
[353938332,1740157839074,-522.43867105,0.00013424,2]
[353938333,1740157839084,-500.0,0.00013424,2]
[353938334,1740157839093,-500.0,0.00013424,2]
[353938335,1740157839102,-500.0,0.00013424,2]
[353938336,1740157839111,-500.0,0.00013424,2]
[353938337,1740157839120,-500.0,0.00013424,2]
[353938338,1740157839129,-500.0,0.00013424,2]
[353938339,1740157839138,-599.29,0.00013424,2]
[353938340,1740157839147,-500.0,0.00013424,2]
[353938341,1740157839156,-504.88416779,0.00013424,2]
[353938342,1740157839165,-12.65742976,0.00013424,2]
[353938345,1740157839693,-487.34257024,0.00013424,2]
[353938346,1740157839703,-475.85494976,0.00013424,2]
[353938347,1740157839714,-24.14505024,0.00013424,2]
[353938348,1740157839723,-272.58804975,0.00013424,2]
[353938349,1740157839748,-227.41195025,0.00013424,2]
[353938350,1740157839758,-500.0,0.00013424,2]
[353938351,1740157839768,-500.0,0.00013424,2]
[353938352,1740157839777,-500.0,0.00013424,2]
[353938353,1740157839786,-500.0,0.00013424,2]
[353938354,1740157839795,-500.0,0.00013424,2]
[353938355,1740157839803,-500.0,0.00013424,2]
[353938356,1740157839812,-500.0,0.00013424,2]
[353938357,1740157839822,-500.0,0.00013424,2]
[353938358,1740157839831,-500.0,0.00013424,2]
[353938359,1740157839841,-30.2969201,0.00013424,2]
[353938360,1740157839855,-319.83586182,0.00013424,2]
[353938361,1740157839875,-149.86721808,0.00013424,2]
[353938362,1740157839884,-500.0,0.00013424,2]
[353938363,1740157839893,-361.19705396,0.00013424,2]
[353938364,1740157840066,-138.80294604,0.00013424,2]
[353938365,1740157840076,-500.0,0.00013424,2]
[353938366,1740157840086,-500.0,0.00013424,2]
[353938367,1740157840095,-500.0,0.00013424,2]
[353938368,1740157840105,-500.0,0.00013424,2]
[353938369,1740157840115,-500.0,0.00013424,2]
[353938370,1740157840124,-500.0,0.00013424,2]
[353938371,1740157840134,-789.55,0.00013424,2]
[353938372,1740157840144,-500.0,0.00013424,2]
[353938373,1740157840155,-551.67894827,0.00013424,2]
[353938374,1740157840166,-500.0,0.00013424,2]
[353938375,1740157840175,-500.0,0.00013424,2]
[353938376,1740157840184,-500.0,0.00013424,2]
[353938377,1740157840194,-500.0,0.00013424,2]
[353938378,1740157840203,-744.69,0.00013424,2]
[353938379,1740157840213,-500.0,0.00013424,2]
[353938380,1740157840222,-500.0,0.00013424,2]
[353938381,1740157840231,-500.0,0.00013424,2]
[353938382,1740157840241,-703.46,0.00013424,2]
[353938383,1740157840250,-500.0,0.00013424,2]
[353938384,1740157840259,-545.91,0.00013424,2]
[353938385,1740157840268,-163.67462,0.00013424,2]
[353938386,1740157840278,-500.0,0.00013424,2]
[353938387,1740157840287,-500.0,0.00013424,2]
[353938388,1740157840296,-162.245376,0.00013424,2]
[353938389,1740157840306,-500.0,0.00013424,2]
[353938390,1740157840315,-500.0,0.00013424,2]
[353938391,1740157840324,-500.0,0.00013424,2]
[353938392,1740157840334,-500.0,0.00013424,2]
[353938393,1740157840343,-814.61,0.00013424,2]
[353938394,1740157840353,-500.0,0.00013424,2]
[353938395,1740157840363,-500.0,0.00013424,2]
[353938396,1740157840372,-668.95,0.00013424,2]
[353938397,1740157840382,-500.0,0.00013424,2]
[353938398,1740157840391,-500.0,0.00013424,2]
[353938399,1740157840400,-500.0,0.00013424,2]
[353938400,1740157840413,-500.0,0.00013424,2]
[353938401,1740157840422,-158.568017,0.00013424,2]
[353938402,1740157840431,-500.0,0.00013424,2]
[353938403,1740157840441,-500.0,0.00013424,2]
[353938404,1740157840450,-500.0,0.00013424,2]
[353938405,1740157840461,-500.0,0.00013424,2]
[353938406,1740157840472,-500.0,0.00013424,2]
[353938407,1740157840482,-545.94,0.00013424,2]
[353938408,1740157840491,-500.0,0.00013424,2]
[353938409,1740157840501,-500.0,0.00013424,2]
[353938410,1740157840511,-500.0,0.00013424,2]
[353938411,1740157840522,-500.0,0.00013424,2]
[353938412,1740157840535,-500.0,0.00013424,2]
[353938413,1740157840547,-500.0,0.00013424,2]
[353938414,1740157840557,-500.0,0.00013424,2]
[353938415,1740157840567,-500.0,0.00013424,2]
[353938416,1740157840579,-500.0,0.00013424,2]
[353938417,1740157840589,-1096.38,0.00013424,2]
[353938418,1740157840599,-500.0,0.00013424,2]
[353938419,1740157840609,-317.10129833,0.00013424,2]
[353938420,1740157840620,-500.0,0.00013424,2]
[353938421,1740157840630,-500.0,0.00013424,2]
[353938422,1740157840640,-500.0,0.00013424,2]
[353938423,1740157840649,-500.0,0.00013424,2]
[353938424,1740157840663,-805.64,0.00013424,2]
[353938425,1740157840673,-500.0,0.00013424,2]
[353938426,1740157840683,-500.0,0.00013424,2]
[353938427,1740157840692,-543.54,0.00013424,2]
[353938428,1740157840701,-500.0,0.00013424,2]
[353938429,1740157840713,-747.9,0.00013424,2]
[353938430,1740157840723,-500.0,0.00013424,2]
[353938431,1740157840732,-477.400438,0.00013424,2]
[353938432,1740157840742,-927.25,0.00013424,2]
[353938433,1740157840751,-500.0,0.00013424,2]
[353938434,1740157840761,-500.0,0.00013424,2]
[353938435,1740157840771,-1102.62,0.00013424,2]
[353938436,1740157840781,-500.0,0.00013424,2]
[353938437,1740157840790,-500.0,0.00013424,2]
[353938438,1740157840800,-500.0,0.00013424,2]
[353938439,1740157840810,-1072.13,0.00013424,2]
[353938440,1740157840819,-500.0,0.00013424,2]
[353938441,1740157840829,-554.67582758,0.00013424,2]
[353938442,1740157840839,-500.0,0.00013424,2]
[353938443,1740157840849,-500.0,0.00013424,2]
[353938444,1740157840858,-500.0,0.00013424,2]
[353938445,1740157840867,-500.0,0.00013424,2]
[353938446,1740157840877,-500.0,0.00013424,2]
[353938447,1740157840887,-500.0,0.00013424,2]
[353938448,1740157840897,-500.0,0.00013424,2]
[353938449,1740157840911,-500.0,0.00013424,2]
[353938450,1740157840921,-500.0,0.00013424,2]
[353938451,1740157840930,-500.0,0.00013424,2]
[353938452,1740157840939,-500.0,0.00013424,2]
[353938453,1740157840948,-500.0,0.00013424,2]
[353938454,1740157840957,-500.0,0.00013424,2]
[353938455,1740157840967,-698.06,0.00013424,2]
[353938456,1740157840976,-500.0,0.00013424,2]
[353938457,1740157840985,-676.05,0.00013424,2]
[353938458,1740157840994,-735.52,0.00013424,2]
[353938459,1740157841004,-500.0,0.00013424,2]
[353938460,1740157841013,-500.0,0.00013424,2]
[353938461,1740157841022,-690.61,0.00013424,2]
[353938462,1740157841031,-500.0,0.00013424,2]
[353938463,1740157841041,-500.0,0.00013424,2]
[353938464,1740157841050,-500.0,0.00013424,2]
[353938465,1740157841059,-500.0,0.00013424,2]
[353938466,1740157841068,-500.0,0.00013424,2]
[353938467,1740157841077,-500.0,0.00013424,2]
[353938468,1740157841086,-514.39,0.00013424,2]
[353938469,1740157841095,-500.0,0.00013424,2]
[353938470,1740157841104,-682.52,0.00013424,2]
[353938471,1740157841113,-500.0,0.00013424,2]
[353938472,1740157841122,-500.0,0.00013424,2]
[353938473,1740157841132,-500.0,0.00013424,2]
[353938474,1740157841143,-500.0,0.00013424,2]
[353938475,1740157841154,-756.82,0.00013424,2]
[353938476,1740157841166,-500.0,0.00013424,2]
[353938477,1740157841176,-530.87,0.00013424,2]
[353938478,1740157841186,-500.0,0.00013424,2]
[353938479,1740157841195,-709.09,0.00013424,2]
[353938480,1740157841203,-500.0,0.00013424,2]
[353938481,1740157841212,-500.0,0.00013424,2]
[353938482,1740157841222,-500.0,0.00013424,2]
[353938483,1740157841231,-500.0,0.00013424,2]
[353938484,1740157841242,-500.0,0.00013424,2]
[353938485,1740157841438,-500.0,0.00013424,2]
[353938486,1740157841448,-784.49,0.00013424,2]
[353938487,1740157841458,-500.0,0.00013424,2]
[353938488,1740157841468,-950.33,0.00013424,2]
[353938489,1740157841477,-500.0,0.00013424,2]
[353938490,1740157841486,-500.0,0.00013424,2]
[353938491,1740157841495,-500.0,0.00013424,2]
[353938492,1740157841505,-500.0,0.00013424,2]
[353938493,1740157841513,-500.0,0.00013424,2]
[353938494,1740157841522,-500.0,0.00013424,2]
[353938495,1740157841535,-572.08,0.00013424,2]
[353938496,1740157841545,-508.3273755,0.00013424,2]
[353938497,1740157841554,-596.02,0.00013424,2]
[353938498,1740157841563,-500.0,0.00013424,2]
[353938499,1740157841572,-500.0,0.00013424,2]
[353938500,1740157841582,-561.52,0.00013424,2]
[353938501,1740157841591,-500.0,0.00013424,2]
[353938502,1740157841600,-500.0,0.00013424,2]
[353938503,1740157841609,-757.26,0.00013424,2]
[353938504,1740157841619,-500.0,0.00013424,2]
[353938505,1740157841628,-500.0,0.00013424,2]
[353938506,1740157841637,-500.0,0.00013424,2]
[353938507,1740157841647,-500.0,0.00013424,2]
[353938508,1740157841656,-506.81967569,0.00013424,2]
[353938509,1740157841671,-500.0,0.00013424,2]
[353938510,1740157841681,-500.0,0.00013424,2]
[353938511,1740157841690,-500.0,0.00013424,2]
[353938512,1740157841700,-500.0,0.00013424,2]
[353938513,1740157841710,-500.0,0.00013424,2]
[353938514,1740157841719,-500.0,0.00013424,2]
[353938515,1740157841729,-500.0,0.00013424,2]
[353938516,1740157841739,-500.0,0.00013424,2]
[353938517,1740157841748,-514.82,0.00013424,2]
[353938518,1740157841757,-1273.22,0.00013424,2]
[353938519,1740157841766,-816.69,0.00013424,2]
[353938520,1740157841775,-500.0,0.00013424,2]
[353938521,1740157841784,-500.0,0.00013424,2]
[353938522,1740157841794,-500.0,0.00013424,2]
[353938523,1740157841803,-186.41916418,0.00013424,2]
[353938524,1740157841812,-500.0,0.00013424,2]
[353938525,1740157841821,-500.0,0.00013424,2]
[353938526,1740157841831,-500.0,0.00013424,2]
[353938527,1740157841840,-735.05,0.00013424,2]
[353938528,1740157841849,-500.0,0.00013424,2]
[353938529,1740157841858,-500.0,0.00013424,2]
[353938530,1740157841866,-1329.4,0.00013424,2]
[353938531,1740157841876,-500.0,0.00013424,2]
[353938532,1740157841885,-901.12,0.00013424,2]
[353938533,1740157841895,-500.0,0.00013424,2]
[353938534,1740157841904,-500.0,0.00013424,2]
[353938535,1740157841917,-500.0,0.00013424,2]
[353938536,1740157841926,-500.0,0.00013424,2]
[353938537,1740157841935,-1262.93,0.00013424,2]
[353938538,1740157841944,-502.238208,0.00013424,2]
[353938539,1740157841953,-725.71,0.00013424,2]
[353938540,1740157841963,-105.39768592,0.00013424,2]
[353938541,1740157841984,-394.60231408,0.00013424,2]
[353938542,1740157841993,-500.0,0.00013424,2]
[353938543,1740157842002,-500.0,0.00013424,2]
[353938544,1740157842011,-721.69,0.00013424,2]
[353938545,1740157842020,-500.0,0.00013424,2]
[353938546,1740157842029,-500.0,0.00013424,2]
[353938547,1740157842039,-500.0,0.00013424,2]
[353938548,1740157842048,-500.0,0.00013424,2]
[353938549,1740157842057,-500.0,0.00013424,2]
[353938550,1740157842066,-500.0,0.00013424,2]
[353938551,1740157842075,-500.0,0.00013424,2]
[353938552,1740157842084,-500.0,0.00013424,2]
[353938553,1740157842094,-500.0,0.00013424,2]
[353938554,1740157842103,-500.0,0.00013424,2]
[353938555,1740157842112,-500.0,0.00013424,2]
[353938556,1740157842121,-500.0,0.00013424,2]
[353938557,1740157842130,-907.16,0.00013424,2]
[353938558,1740157842140,-500.0,0.00013424,2]
[353938559,1740157842149,-500.0,0.00013424,2]
[353938560,1740157842160,-500.0,0.00013424,2]
[353938561,1740157842170,-500.0,0.00013424,2]
[353938562,1740157842179,-500.0,0.00013424,2]
[353938563,1740157842187,-831.91,0.00013424,2]
[353938564,1740157842196,-500.0,0.00013424,2]
[353938565,1740157842205,-500.0,0.00013424,2]
[353938566,1740157842214,-163.67462,0.00013424,2]
[353938567,1740157842223,-500.0,0.00013424,2]
[353938568,1740157842232,-500.0,0.00013424,2]
[353938569,1740157842241,-500.0,0.00013424,2]
[353938570,1740157842250,-500.0,0.00013424,2]
[353938571,1740157842259,-1017.0,0.00013424,2]
[353938572,1740157842267,-901.14,0.00013424,2]
[353938573,1740157842276,-500.0,0.00013424,2]
[353938574,1740157842285,-500.0,0.00013424,2]
[353938575,1740157842294,-500.0,0.00013424,2]
[353938576,1740157842303,-584.48096559,0.00013424,2]
[353938577,1740157842312,-500.0,0.00013424,2]
[353938578,1740157842321,-500.0,0.00013424,2]
[353938579,1740157842330,-1119.1,0.00013424,2]
[353938580,1740157842339,-836.12,0.00013424,2]
[353938581,1740157842348,-500.0,0.00013424,2]
[353938582,1740157842357,-883.27,0.00013424,2]
[353938583,1740157842366,-162.245376,0.00013424,2]
[353938584,1740157842375,-500.0,0.00013424,2]
[353938585,1740157842384,-663.52,0.00013424,2]
[353938586,1740157842393,-663.52,0.00013424,2]
[353938587,1740157842402,-500.0,0.00013424,2]
[353938588,1740157842413,-500.0,0.00013424,2]
[353938589,1740157842422,-500.0,0.00013424,2]
[353938591,1740157842431,-1101.0,0.00013424,2]
[353938592,1740157842440,-500.0,0.00013424,2]
[353938593,1740157842449,-500.0,0.00013424,2]
[353938594,1740157842458,-500.0,0.00013424,2]
[353938595,1740157842467,-500.0,0.00013424,2]
[353938596,1740157842476,-505.33835467,0.00013424,2]
[353938597,1740157842485,-500.0,0.00013424,2]
[353938598,1740157842494,-500.0,0.00013424,2]
[353938599,1740157842503,-500.0,0.00013424,2]
[353938600,1740157842512,-500.0,0.00013424,2]
[353938601,1740157842521,-500.0,0.00013424,2]
[353938603,1740157842532,-500.0,0.00013424,2]
[353938605,1740157842544,-500.0,0.00013424,2]
[353938606,1740157842554,-500.0,0.00013424,2]
[353938607,1740157842563,-210.38358004,0.00013424,2]
[353938608,1740157842572,-500.0,0.00013424,2]
[353938609,1740157842581,-500.0,0.00013424,2]
[353938610,1740157842592,-500.0,0.00013424,2]
[353938611,1740157842601,-752.61,0.00013424,2]
[353938612,1740157842610,-500.0,0.00013424,2]
[353938614,1740157842621,-500.0,0.00013424,2]
[353938616,1740157842631,-500.0,0.00013424,2]
[353938618,1740157842640,-509.42281668,0.00013424,2]
[353938619,1740157842650,-500.0,0.00013424,2]
[353938620,1740157842660,-598.26,0.00013424,2]
[353938621,1740157842670,-749.06,0.00013424,2]
[353938622,1740157842679,-316.3065413,0.00013424,2]
[353938623,1740157842688,-500.0,0.00013424,2]
[353938624,1740157842697,-500.0,0.00013424,2]
[353938625,1740157842706,-500.0,0.00013424,2]
[353938626,1740157842716,-500.0,0.00013424,2]
[353938627,1740157842725,-500.0,0.00013424,2]
[353938628,1740157842735,-500.0,0.00013424,2]
[353938629,1740157842745,-562.29,0.00013424,2]
[353938630,1740157842755,-500.0,0.00013424,2]
[353938631,1740157842764,-500.0,0.00013424,2]
[353938632,1740157842774,-500.0,0.00013424,2]
[353938633,1740157842784,-867.62,0.00013424,2]
[353938634,1740157842793,-500.0,0.00013424,2]
[353938635,1740157842802,-1652.64,0.00013424,2]
[353938636,1740157842811,-500.0,0.00013424,2]
[353938637,1740157842820,-500.0,0.00013424,2]
[353938638,1740157842829,-500.0,0.00013424,2]
[353938639,1740157842839,-500.0,0.00013424,2]
[353938640,1740157842848,-500.0,0.00013424,2]
[353938641,1740157842857,-500.0,0.00013424,2]
[353938642,1740157842866,-500.0,0.00013424,2]
[353938643,1740157842875,-500.0,0.00013424,2]
[353938644,1740157842884,-500.0,0.00013424,2]
[353938645,1740157842893,-500.0,0.00013424,2]
[353938646,1740157842902,-500.0,0.00013424,2]
[353938647,1740157842914,-500.0,0.00013424,2]
[353938648,1740157842923,-500.0,0.00013424,2]
[353938649,1740157842933,-500.0,0.00013424,2]
[353938650,1740157842943,-500.0,0.00013424,2]
[353938651,1740157842953,-500.0,0.00013424,2]
[353938652,1740157842962,-500.0,0.00013424,2]
[353938653,1740157842972,-500.0,0.00013424,2]
[353938654,1740157842981,-500.0,0.00013424,2]
[353938655,1740157842991,-500.0,0.00013424,2]
[353938656,1740157843001,-500.0,0.00013424,2]
[353938657,1740157843010,-500.0,0.00013424,2]
[353938658,1740157843020,-500.0,0.00013424,2]
[353938659,1740157843030,-500.0,0.00013424,2]